Cogmind - Beta 15 @@@ ROGUE MODE // 2025.09.19 @ 17:49:22 Player: BlobtheGreat Result: Smashed by cave-in Performance ------------- Evolutions (0) 0 Regions Visited (2) 400 Robots Destroyed (31) 155 Value Destroyed (527) 527 Prototype IDs (0) 0 Alien Tech Used (0) 0 Bonus (0) 0 TOTAL SCORE: 1082 Bonus ------- None Cogmind --------- Core Integrity 0/250 Matter 146/300 Energy 100/100 System Corruption 5% Temperature Cool (0) Movement Treading (160) Location -10/Subcaves Parts ------- > --- POWER (1) -------- (None) > --- PROPULSION (2) --- Light Treads Light Treads > --- UTILITY (2) ------ Large Storage Unit Subdweller Optics > --- WEAPON (2) ------- Light Cannon > --- INVENTORY (15) --- Light Treads Huge Storage Unit Seismic Detector Assault Rifle Light Assault Rifle Light Assault Rifle Light Assault Rifle Light Cannon Light Cannon Grenade Launcher Grenade Launcher Grenade Launcher Peak State ------------ > --- POWER ------------ Ion Engine > --- PROPULSION ------- Light Treads Light Treads > --- UTILITY ---------- Large Storage Unit Subdweller Optics > --- WEAPON ----------- Light Cannon Light Cannon > --- INVENTORY -------- Light Treads Huge Storage Unit Seismic Detector Assault Rifle Light Assault Rifle Light Assault Rifle Light Assault Rifle Light Cannon Grenade Launcher Grenade Launcher Grenade Launcher Mining Laser [Rating: 9] Favorites ----------- Power Ion Engine Engine Ion Engine Propulsion Light Treads Treads Light Treads Utility Light Armor Plating Device Seismic Detector Storage Large Storage Unit Protection Light Armor Plating Weapon Light Assault Rifle Ballistic Gun Light Assault Rifle Ballistic Cannon Light Cannon Launcher Grenade Launcher Special Weapon Mining Laser Build | -11 -10 -10 ------- Run | Yrd Mat Sub Slots Evolved . | . . . Power . | . . . Propulsion . | . . . Utility . | . . . Weapon . | . . . Parts Attached 19 | 7 4 8 Power 2 | 1 1 . Engine 2 | 1 1 . Core . | . . . Reactor . | . . . Propulsion 4 | 2 . 2 Treads 4 | 2 . 2 Leg . | . . . Wheel . | . . . Hover . | . . . Flight . | . . . Utility 7 | 2 3 2 Device 3 | 1 . 2 Storage 3 | 1 2 . Processor . | . . . Hackware . | . . . Protection 1 | . 1 . Artifact . | . . . Weapon 6 | 2 . 4 Energy Gun . | . . . Energy Cannon . | . . . Ballistic Gun 2 | 2 . . Ballistic Cannon 2 | . . 2 Launcher 1 | . . 1 Special Weapon 1 | . . 1 Impact Weapon . | . . . Slashing Weapon . | . . . Piercing Weapon . | . . . Special Melee Weapon . | . . . Unidentified Prototypes . | . . . Parts Lost 7 | . 2 5 Power 2 | . 1 1 Propulsion 2 | . . 2 Utility 2 | . 1 1 Weapon 1 | . . 1 Highest Loss Streak 2 | . 1 2 To Critical Strikes . | . . . Average Backups 10 | 5 9 13 Power . | . . . Propulsion 3 | 3 3 1 Utility 1 | . 1 2 Weapon 4 | . 4 9 Tool/Special . | . . . Unused Backups 15 | . 8 7 Power . | . . . Propulsion 5 | . 4 1 Utility 4 | . 3 1 Weapon 5 | . . 5 Tool/Special 1 | . 1 . Average Slot Usage (%) 97 | . 99 94 Engine 13 | . 14 13 Treads 27 | . 28 26 Device 4 | . 3 6 Storage 14 | . 14 14 Protection 7 | . 8 3 Ballistic Gun 20 | . 28 2 Ballistic Cannon 7 | . . 25 Peak Build Rating 9 | 7 8 9 Average Rating 7 | 5 7 7 On Entrance 5 | . 7 8 Naked Turns . | . . . Heaviest Build 34 | 11 30 34 Greatest Support 40 | 40 40 40 Greatest Overweight (x) 1 | . . 1 Average Overweight (x) . | . . . Largest Inventory Capacity 15 | 8 15 15 Average Capacity 11 | 7 10 15 Most Carried 14 | 7 14 14 Average Carried 10 | 5 9 13 Final Capacity 15 | 8 15 15 Final Carried 14 | 7 14 12 Class Distribution -------------------- 100% | Mutant Dominant Class ---------------- Mutant | -10/Materials Mutant | -10/Subcaves Resources | -11 -10 -10 ----------- Run | Yrd Mat Sub Matter Collected 624 | 346 171 107 Remotely . | . . . Salvage Created 884 | 223 635 26 Parts 65 | 19 43 3 Haulers Intercepted 2 | . 2 . Recyclers Shooed . | . . . Parts Field Recycled . | . . . Retrieved Matter . | . . . Parts Self-Destructed 4 | . . 4 Prevented . | . . . Kills | -11 -10 -10 ------- Run | Yrd Mat Sub Combat Hostiles Destroyed 18 | . 13 5 Guns 13 | . 13 . Cannons 2 | . . 2 AOE 3 | . . 3 Classes Destroyed 8 | 3 4 1 Worker 1 | 1 . . Tunneler 7 | 7 . . Hauler 2 | . 2 . Recycler 2 | 1 1 . Operator 1 | . 1 . Swarmer 8 | . 5 3 Grunt 8 | . 8 . Subdweller 2 | . . 2 Best Kill Streak 3 | 2 2 3 Combat Bots Only 3 | . 2 3 Max Kills in Single Turn 1 | 1 1 1 Gunslinging . | . . . Exploded 1 | . . 1 Melee . | . . . Uniques/NPCs Destroyed . | . . . Combat | -11 -10 -10 -------- Run | Yrd Mat Sub Hostile Shots Fired 102 | . 73 29 Missed 29 | . 21 8 Hits 73 | . 52 21 Projectile 73 | . 52 21 Critical Strikes 1 | . . 1 Damage Taken 1201 | . 584 617 Core 252 | . 66 186 Absorbed by Shields . | . . . Core Remaining (%) 100 | 100 . . Volleys Fired 130 | 38 67 25 Largest 2 | 2 2 2 Hottest 100 | 40 40 100 Shots Fired 248 | 76 134 38 Gun 210 | 76 134 . Cannon 29 | . . 29 Launcher 5 | . . 5 Special 4 | . . 4 Kinetic 239 | 76 134 29 Thermal 4 | . . 4 Explosive 5 | . . 5 Electromagnetic . | . . . Robot Hit Streak 11 | 9 8 11 Robot Miss Streak 5 | 5 4 2 Penetration Max . | . . . Secondary Targets 2 | . 2 . Max Gunslinging Chain 1 | . 1 . Shots Hit Robots 151 | 42 86 23 Core Hits 62 | 17 38 7 Critical Kills 1 | . 1 . Critical Parts Destroyed . | . . . Critical Strikes 1 | . 1 . Destroy 1 | . 1 . Melee Attacks . | . . . Impact . | . . . Slashing . | . . . Piercing . | . . . Sneak Attacks . | . . . Combat Hostiles . | . . . Follow-up Attacks . | . . . Damage Inflicted 1617 | 364 718 535 Guns 1069 | 358 711 . Cannons 301 | . . 301 Explosions 234 | . . 234 Melee . | . . . Ramming 13 | 6 7 . Kinetic 1370 | 358 711 301 Thermal . | . . . Explosive 234 | . . 234 Electromagnetic . | . . . Impact . | . . . Slashing . | . . . Piercing . | . . . Highest Corruption 1 | . 1 1 Average Corruption 1 | . 1 1 Corruption Purged . | . . . Corruption Blocked . | . . . Effects 8 | . 3 5 Message Errors 4 | . 2 2 Matter Fused 1 | . 1 . Parts Rejected 2 | . . 2 Data Loss (major) 1 | . . 1 Overload Shots . | . . . Overflow Damage . | . . . Projectiles . | . . . Explosions . | . . . Melee . | . . . Knockbacks 6 | . . 6 Impact . | . . . Kinetic 6 | . . 6 Secondary . | . . . Self-Inflicted Damage . | . . . Shots . | . . . Rammed 2 | . 2 . Targets Rammed 3 | 1 2 . Kicked . | . . . Crushed 1 | 1 . . Highest Temperature 62 | . 62 . Average Temperature 12 | . 12 . Received Heat Transfer 267 | . 201 66 Siege Activations . | . . . Martial Activations . | . . . Shielding Activations . | . . . Robots Disrupted . | . . . Combat Hostiles . | . . . Robots Corrupted . | . . . Combat Hostiles . | . . . Parts Fried . | . . . Impact Corruptions . | . . . Robots Melted . | . . . Combat Hostiles . | . . . Parts Melted . | . . . Heat Transferred . | . . . Parts Sabotaged . | . . . Parts Stolen . | . . . Parts Stripped . | . . . Power Chain Reactions . | . . . Alert | -11 -10 -10 ------- Run | Yrd Mat Sub Maximum Alert Level . | . . . Low Security (%) 100 | 100 100 . Level 1 . | . . . Level 2 . | . . . Level 3 . | . . . Level 4 . | . . . Level 5 . | . . . High Security . | . . . Max Security . | . . . Peak Influence 124 | 5 124 . Initial 3 | . 3 . Average 28 | 1 34 . Influence Increases 693 | 45 408 240 Destroy 0b10 Robot/C 320 | . 260 60 Destroy 0b10 Robot/NC 65 | 45 20 . Destroy Leader 64 | . 64 . Successful Hack 19 | . 19 . Lose Combat Pursuer 225 | . 45 180 Influence Decreases 587 | 40 413 134 Entered New Map 2 | . 2 . Time Decay 545 | 40 391 114 Lost Part 40 | . 20 20 Squads Dispatched 4 | . 4 . Investigation 1 | . 1 . Extermination . | . . . Reinforcement 3 | . 3 . Assault . | . . . Garrison . | . . . Intercept . | . . . Searches Triggered . | . . . Construction Impeded . | . . . Haulers Reinforced . | . . . Active Scanning Responses . | . . . Cargo Convoy Interrupts . | . . . Stealth | -11 -10 -10 --------- Run | Yrd Mat Sub Distress Signals . | . . . Communications Jammed . | . . . Distress Signals . | . . . Times Spotted 36 | . 26 10 Peak Tracking Total 4 | . 4 3 Tactical Retreats 6 | . 3 3 Traps | -11 -10 -10 ------- Run | Yrd Mat Sub Traps Triggered 3 | . 2 1 Indirectly . | . . . Trap Hack Attempts . | . . . Triggered . | . . . Disarmed . | . . . Reprogrammed . | . . . Reused . | . . . Traps Extracted . | . . . Installed . | . . . Triggered . | . . . Machines | -11 -10 -10 ---------- Run | Yrd Mat Sub Machines Disabled 1 | . . 1 Max in Single Turn 1 | . . 1 Machines Repaired . | . . . Machines Dismantled . | . . . Machines Sabotaged . | . . . Overloaded Fab Kills . | . . . Hacking | -11 -10 -10 --------- Run | Yrd Mat Sub Machines Accessed 5 | . 5 . Terminals 5 | . 5 . Fabricators . | . . . Repair Stations . | . . . Recycling Units . | . . . Scanalyzers . | . . . Garrison Access . | . . . Total Hacks 18 | . 18 . Successful 9 | . 9 . Failed 9 | . 9 . Catastrophic . | . . . Database Lockouts . | . . . Manual 16 | . 16 . Terminals 18 | . 18 . Fabricators . | . . . Repair Stations . | . . . Recycling Units . | . . . Scanalyzers . | . . . Garrison Access . | . . . Terminal Hacks 3 | . 3 . Robot Analysis 2 | . 2 . Zone Layout 1 | . 1 . Fabricator Hacks . | . . . Repair Station Hacks . | . . . Recycling Unit Hacks . | . . . Scanalyzer . | . . . Garrison Access Hacks . | . . . Unauthorized Hacks 6 | . 6 . Terminals 6 | . 6 . Botnet 1 | . 1 . Skim 5 | . 5 . Fabricators . | . . . Repair Stations . | . . . Recycling Units . | . . . Scanalyzers . | . . . Garrison Access . | . . . Data Cores Recovered . | . . . Used . | . . . Hacking Detections 5 | . 5 . Full Trace Events . | . . . Feedback Events . | . . . Feedback Blocked . | . . . Robot Schematics Acquired . | . . . Robots Built . | . . . Authchips . | . . . Time . | . . . Total Robot Build Rating . | . . . Part Schematics Acquired . | . . . Parts Built . | . . . Authchips . | . . . Time . | . . . Total Part Build Rating . | . . . Parts Repaired . | . . . Time . | . . . Parts Recycled . | . . . Recycled Matter . | . . . Retrieved Matter . | . . . Retrieved Components . | . . . Parts Scanalyzed . | . . . Part Schematics Acquired . | . . . Parts Damaged . | . . . Bothacking | -11 -10 -10 ------------ Run | Yrd Mat Sub Used RIF Installer . | . . . Robots Hacked . | . . . Non-combat . | . . . Combat . | . . . Robot Hacks Applied . | . . . Relay Couplers Released . | . . . Fabnet Peak Effective % . | . . . Robots Rewired . | . . . Allies Hacked . | . . . Hacks Repelled . | . . . Allies | -11 -10 -10 -------- Run | Yrd Mat Sub Total Allies . | . . . Largest Group . | . . . Highest-Rated Group . | . . . Highest-Rated Ally . | . . . Total Orders . | . . . Ally Attacks . | . . . Total Damage . | . . . Kills . | . . . Allies Corrupted . | . . . Allies Melted . | . . . Intel | -11 -10 -10 ------- Run | Yrd Mat Sub Active Infowar (turns) 665 | 44 373 248 Optics 110 | . . 110 Seismic 555 | 44 373 138 Robot Analysis Total 2 | . 2 . Derelict Logs Recovered 1 | . . 1 Drone Launches . | . . . Drone Recoveries . | . . . Exploration | -11 -10 -10 ------------- Run | Yrd Mat Sub Turns Passed 2297 | 335 1408 554 Spaces Moved 1155 | 139 736 280 Core 4 | 4 . . Treads 1151 | 135 736 280 Legs . | . . . Wheels . | . . . Hover . | . . . Flight . | . . . Fastest Speed 50 | 50 160 160 Average Speed 160 | 156 160 164 Slowest Speed 240 | 160 160 240 Overloaded Moves . | . . . Propulsion Burnouts . | . . . Robots Hopped . | . . . Potential Cave-ins . | . . . Cave-ins Triggered 1 | . . 1 Exploration Rate (%) 40 | 8 91 21 Regions Visited 2 Branch Regions 1 Pre-discovered Areas 1 | . 1 . Known Exits Taken . | . . . Unknown Exits Taken 2 | 1 1 . Scrap Searched . | . . . Spaces Dug 8 | . . 8 Terrain Destroyed 21 | . . 21 Melee . | . . . Projectile 4 | . . 4 AOE 17 | . . 17 Terrain Rammed . | . . . Walls Destroyed . | . . . Machines Disabled . | . . . Actions | -11 -10 -10 --------- Run | Yrd Mat Sub Total 1375 | 191 863 321 Wait 31 | . 28 3 Move 1153 | 138 735 280 Hop . | . . . Pick Up 25 | 7 17 1 Fast Attach 10 | 7 1 2 Attach 5 | . 2 3 Detach . | . . . Swap 8 | . 1 7 Drop 10 | . 10 . Fire 130 | 38 67 25 Melee . | . . . Ram . | . . . Kick . | . . . Crush 3 | 1 2 . Escape Stasis . | . . . Rewire . | . . . Trap . | . . . Miscellaneous . | . . . Route ------- -11/Scrapyard -10/Materials (discovered 5 exits: *Mat x3 / [*Min] / [*Sub]) -10/Subcaves (discovered 1 exit: *Rec) History --------- Turn | Location | Event 16 | -11/Scrapyard | Discovered new exit (range 16) 336 | -11/Scrapyard | Entered Materials 337 | -10/Materials | Build established: Mutant 470 | -10/Materials | Discovered new exit (range 15) 919 | -10/Materials | Discovered new exit (range 9) 1204 | -10/Materials | Discovered new exit (range 16) 1371 | -10/Materials | Discovered new exit (range 16) 1461 | -10/Materials | Learned Storage non-interactive machine intel 1513 | -10/Materials | Learned Materials emergency access door positions 1557 | -10/Materials | Identified exit to Materials 1589 | -10/Materials | Learned 4 Subcaves zone layouts 1610 | -10/Materials | Learned location of 3 exits from Materials 1621 | -10/Materials | Learned Materials emergency access door positions 1642 | -10/Materials | Learned location of Subcaves (-10) 1672 | -10/Materials | Learned Materials emergency access door positions 1712 | -10/Materials | Learned location of 2 exits from Mines 1744 | -10/Materials | Entered Subcaves 1745 | -10/Subcaves | Approached by a straggling Scientist 2004 | -10/Subcaves | Identified exit to Recycling 2096 | -10/Subcaves | Core integrity fell below 50% 2299 | -10/Subcaves | Crushed by falling debris 2299 | -10/Subcaves | Smashed by cave-in Last Messages --------------- M9-UWW(c): "I think it's somewhere northeast of here" 02095_ Triggered Piercing Trap. 02095_ Spikes shoot up from the floor. 02095_ Critical hit (Impale). M9-UWW(c): "I think it's somewhere northeast of here" 02141_ System corrupted: Substantial component data lost. M9-UWW(c): "I think it's somewhere northeast of here" M9-UWW(c): "I think it's somewhere east of here" 02243_ I9DAN5 GO 3CWRCA4=E2O8OB2N>FFT:GQO%Y0H M9-UWW(c): "I think it's somewhere east of here" 02299_ The unstable cave ceiling collapses. 02299_ Crushed by falling debris. 02299_ Ion Engine destroyed. 02299_ System corrupted by crushing effect (+2). 02299_ Mining Laser destroyed. 02299_ System corrupted by crushing effect (+2). Map ----- +----------------------------------------------------+ | | | ??????????????????????????????????????????? | | ??????????????????????????????????????????? | | ??????????????????????????????????????????? | | ??????????????????????????????????????????? | | ??????????????????????????????????????????? | | ??????????????????????????????????????????? | | ??????????????????????????????????????????? | | ??????????????????????????????????????????? | | ??????????????????????????????????????????? | | ??????????????????????????????????????????? | | ??????????????????????????????????????????? | | ??????????????????????????????????????????? | | ??????????????????????????????????????????? | | ??????????????????????????????????????????? | | ??????????????????????????????????????????? | | ??????????????????????????????????????????? | | ??????????????????????????????????????????? | | ??????????????????????????????????????????? | | ??????????????????????????????????????????? | | ??????????????????????????????????????????? | | ??????????????????????????????????????????? | | ??????????????????????????????###?????????? | | ??????????????????????#####??## ##???????? | | ???????????????######## ##?# #???????? | | ???????????????# @c #?? #???????? | | ???????????????## ## # #??? ##??????? | | ????????????????##?###### ##???# #??????? | | ????????????????????????# ##### ##?????? | | ????????????????????????# # #?????? | | ????????????????????????# #?????? | | ????????????????????????# ##?????? | | ???????????????????????## #####??????? | | ?????????????????????### ####???????? | | ?????????????????????# ##??????? | | ?????????????????????## ###????? | | ?????????????????????# ## ####?? | | ?????????????????????##?## #?? | | ?????????????????????????#### ##?? | | ??????????????????????????### #??? | | ??????????????????????##### ##### | | ??????????????????????# ##?# # | | ??????????????????????# ##??# | | ?????????????????????## #??## | | ???????????????????### ##?## | | ???????????????????# #### | | ???????????????????# | | ???????????????????### ## | | ????????????????????# ## ## ## !## | | ????????????????????## ?## ###### ## | +----------------------------------------------------+ Best States ------------- Heat Dissipation 25 Energy Generation 10 Energy Capacity 250 Matter Stores 300 Matter Capacity 300 Sight Range 21 Terrain Scan Density 10 Armor Coverage 150 Evasion (%) 40 Recoil Reduction 2 Item Schematics ----------------- None Robot Schematics ------------------ None Fabricated ------------ Nothing Repaired ---------- Nothing Alien Tech Used ----------------- None Achievements -------------- None Challenges ------------ None Game ------ Seed ThermicMomentumBuckler Manual? 0 Play Time 00:13:33 Cumulative 147.6 hours Start 2025.09.19 @ 17:27:04 End 2025.09.19 @ 17:49:22 Sessions 1 Manual Loads 0 Difficulty Rogue Special Mode None Game No. 127 Rogue 127 Adventurer 0 Explorer 0 Win Type - Total 5 Types 4/0/1/0/0/0/0/0/0/0 Lore% 72 Gallery% 64 Achievement% 60 Wizard Run 0 Options --------- Layout 1 ASCII 0 Keyboard 1 Movement Arrows Keybinds 0 Fullscreen 1 Font 24/Smallcaps Map View 50x40 Zoom Use 0% Tactical HUD 1 Map Filters NONE Filters NONE Steam 1 RUN: b6dac213-858d-4d71-a86f-63c584ef8a7d